[Event "17th Memorial Lezcano Montalvo 2025"]
[Site "Gran Canaria"]
[Date "2025.04.14"]
[Round "3.28"]
[White "Basualdo De Ornelas, Jorge"]
[Black "Bethencourt Hernandez, Alberto"]
[Result "0-1"]
[Annotator "NA RC"]
[ECO "B45"]
[WhiteElo "1794"]
[BlackElo "2122"]
[PlyCount "57"]
[EventDate "2025.04.13"]
[EventType "swiss"]
[EventCountry "ESP"]
[SourceTitle "playchess.com"]
[Source "ChessBase"]
[SourceQuality "1"]
[TimeControl "5400+30"]

1. e4 {[%emt 0:00:01]} c5 {[%emt 0:04:53]} 2. Nf3 {[%emt 0:00:05]} e6 {[%emt 0:00:19]} 3. d4 {[%emt 0:00:15]} cxd4 {[%emt 0:00:05]} 4. Nxd4 {[%emt 0:00:05]} Nf6 {[%emt 0:00:04]} 5. Nc3 {[%emt 0:02:26]} Nc6 {[%emt 0:00:06]} 6. g3 {[%emt 0:00:33]} Bb4 {[%emt 0:02:20]} 7. Bg2 {[%emt 0:00:37]} d5 {[%emt 0:00:52]} 8. O-O {[%emt 0:04:26]} Bxc3 {[%emt 0:08:46]} 9. Nxc6 {[%emt 0:02:19]} bxc6 {[%emt 0:00:05]} 10. bxc3 {[%emt 0:00:04]} Ba6 {[%emt 0:10:53]} 11. Re1 {[%emt 0:10:46]} Nxe4 {[%emt 0:01:56]} 12. Bxe4 {[%emt 0:07:32]} dxe4 {[%emt 0:00:05]} 13. Qg4 {[%emt 0:00:13]} O-O {[%emt 0:08:38]} 14. Qxe4 {[%emt 0:17:46]} Qa5 {[%emt 0:03:52]} 15. Bf4 {[%emt 0:06:30]} Qxc3 {[%emt 0:03:15]} 16. Rad1 {[%emt 0:08:02]} Rfd8 {[%emt 0:04:15]} 17. Rxd8+ {[%emt 0:00:07]} Rxd8 {[%emt 0:00:07]} 18. Be5 {[%emt 0:02:42]} Qc4 {[%emt 0:00:18]} 19. Qe3 {[%emt 0:00:24]} f6 {[%emt 0:10:43]} 20. Bc7 {[%emt 0:17:49]} Rd7 {[%emt 0:00:10]} 21. Qxa7 {[%emt 0:10:22]} Qc3 {[%emt 0:10:47]} 22. Qb8+ {[%emt 0:02:49]} Kf7 {[%emt 0:00:08]} 23. Rb1 {[%emt 0:00:17]} Qxc2 {[%emt 0:00:32]} 24. Kg2 {[%emt 0:05:46]} Bd3 {[%emt 0:00:23]} 25. Re1 {[%emt 0:00:26]} Be4+ {[%emt 0:01:29]} 26. Kg1 {[%emt 0:00:15]} Qe2 {[%emt 0:00:36]} 27. Qb4 {[%emt 0:00:45]} Rd1 {[%emt 0:00:18]} 28. Ba5 {[%emt 0:00:30]} Qf3 {[%emt 0:00:08]} 29. Qb7+ {[%emt 0:01:08]} 0-1

[Event "17th Memorial Lezcano Montalvo 2025"]
[Site "Gran Canaria"]
[Date "2025.04.14"]
[Round "3.29"]
[White "Velasquez Vargas, Sebastian"]
[Black "Ramirez Maillo, Cristian"]
[Result "0-1"]
[Annotator "NA RC"]
[ECO "E61"]
[WhiteElo "1777"]
[BlackElo "2106"]
[PlyCount "120"]
[EventDate "2025.04.13"]
[EventType "swiss"]
[EventCountry "ESP"]
[SourceTitle "playchess.com"]
[Source "ChessBase"]
[SourceQuality "1"]
[TimeControl "5400+30"]

1. d4 {[%emt 0:00:18]} Nf6 {[%emt 0:00:26]} 2. c4 {[%emt 0:00:10]} g6 {[%emt 0:00:06]} 3. Nc3 {[%emt 0:00:13]} Bg7 {[%emt 0:00:08]} 4. Bf4 {[%emt 0:00:08]} O-O {[%emt 0:00:16]} 5. Nf3 {[%emt 0:00:32]} d6 {[%emt 0:01:27]} 6. e3 {[%emt 0:00:40]} c5 {[%emt 0:04:17]} 7. Be2 {[%emt 0:01:08]} Nc6 {[%emt 0:00:53]} 8. O-O {[%emt 0:00:53]} cxd4 {[%emt 0:04:08]} 9. exd4 {[%emt 0:00:48]} Bf5 {[%emt 0:01:17]} 10. d5 {[%emt 0:00:30]} Nb8 {[%emt 0:01:30]} 11. Bd3 {[%emt 0:00:19]} Bd7 {[%emt 0:01:22]} 12. Qd2 {[%emt 0:00:39]} Re8 {[%emt 0:00:41]} 13. Rfe1 {[%emt 0:00:49]} Na6 {[%emt 0:00:10]} 14. Rad1 {[%emt 0:04:01]} Rc8 {[%emt 0:00:27]} 15. b3 {[%emt 0:00:45]} Bg4 {[%emt 0:01:08]} 16. Be2 {[%emt 0:04:23]} Nc5 {[%emt 0:03:08]} 17. Be3 {[%emt 0:06:43]} Nfe4 {[%emt 0:01:18]} 18. Nxe4 {[%emt 0:00:36]} Nxe4 {[%emt 0:00:07]} 19. Qc2 {[%emt 0:00:13]} Nc3 {[%emt 0:00:31]} 20. Rc1 {[%emt 0:01:46]} Nxd5 {[%emt 0:01:01]} 21. Qe4 {[%emt 0:17:08]} Nxe3 {[%emt 0:01:07]} 22. fxe3 {[%emt 0:00:54]} Qd7 {[%emt 0:03:33]} 23. Nd4 {[%emt 0:13:23]} Bxe2 {[%emt 0:00:18]} 24. Rxe2 {[%emt 0:00:17]} d5 {[%emt 0:00:42]} 25. Qh4 {[%emt 0:02:09]} dxc4 {[%emt 0:01:06]} 26. bxc4 {[%emt 0:01:24]} Qa4 {[%emt 0:02:38]} 27. Rec2 {[%emt 0:00:53]} Bf6 {[%emt 0:02:57]} 28. Qe4 {[%emt 0:00:42]} b6 {[%emt 0:01:56]} 29. h3 {[%emt 0:02:07]} a6 {[%emt 0:00:19]} 30. Qd3 {[%emt 0:01:30]} e5 {[%emt 0:00:35]} 31. Ne2 {[%emt 0:01:28]} Red8 {[%emt 0:00:42]} 32. Qc3 {[%emt 0:02:18]} Rc6 {[%emt 0:01:16]} 33. e4 {[%emt 0:03:43]} Rdc8 {[%emt 0:02:15]} 34. Qb3 {[%emt 0:01:23]} Qa5 {[%emt 0:01:02]} 35. Rc3 {[%emt 0:01:42]} Bg5 {[%emt 0:02:28]} 36. R1c2 {[%emt 0:06:38]} Rd8 {[%emt 0:01:19]} 37. Kh2 {[%emt 0:04:38]} Rd1 {[%emt 0:02:39]} 38. Rd3 {[%emt 0:08:11]} Rf1 {[%emt 0:01:14]} 39. Rcc3 {[%emt 0:01:31]} Qc5 {[%emt 0:57:33]} 40. Rf3 {[%emt 0:00:57]} Bf4+ {[%emt 0:00:00]} 41. Nxf4 {[%emt 0:00:47]} Qg1+ {[%emt 0:00:00]} 42. Kg3 {[%emt 0:00:14]} exf4+ {[%emt 0:00:00]} 43. Rxf4 {[%emt 0:03:23]} Rxf4 {[%emt 0:00:00]} 44. Kxf4 {[%emt 0:09:36]} Qxg2 {[%emt 0:00:00]} 45. e5 {[%emt 0:00:00]} Qf1+ {[%emt 0:00:00]} 46. Ke4 {[%emt 0:00:00]} Qf5+ {[%emt 0:00:00]} 47. Kd4 {[%emt 0:01:30]} Qf4+ {[%emt 0:00:00]} 48. Kd3 {[%emt 0:00:00]} Qxe5 {[%emt 0:00:00]} 49. Kc2 {[%emt 0:00:00]} Kg7 {[%emt 0:05:00]} 50. Re3 {[%emt 0:00:00]} Qd4 {[%emt 0:00:00]} 51. Rd3 {[%emt 0:00:00]} Qxc4+ {[%emt 0:00:00]} 52. Kd2 {[%emt 0:00:00]} Qc1+ {[%emt 0:00:00]} 53. Ke2 {[%emt 0:00:00]} Re6+ {[%emt 0:00:00]} 54. Kf3 {[%emt 0:00:00]} Qf1+ {[%emt 0:00:00]} 55. Kg3 {[%emt 0:00:00]} Qg1+ {[%emt 0:00:00]} 56. Kf3 {[%emt 0:00:00]} Rf6+ {[%emt 0:00:00]} 57. Ke4 {[%emt 0:00:00]} Qe1+ {[%emt 0:00:00]} 58. Re3 {[%emt 0:00:00]} Re6+ {[%emt 0:00:00]} 59. Kd4 {[%emt 0:00:00]} Qxe3+ {[%emt 0:00:00]} 60. Qxe3 {[%emt 0:00:00]} Rxe3 {[%emt 0:00:00]} 0-1

[Event "17th Memorial Lezcano Montalvo 2025"]
[Site "Gran Canaria"]
[Date "2025.04.14"]
[Round "3.30"]
[White "Halldorsson, Halldor"]
[Black "Sanchez Ramirez, Gustavo"]
[Result "1-0"]
[Annotator "NA RC"]
[ECO "B01"]
[WhiteElo "2103"]
[BlackElo "1780"]
[PlyCount "30"]
[EventDate "2025.04.13"]
[EventType "swiss"]
[EventCountry "ESP"]
[SourceTitle "playchess.com"]
[Source "ChessBase"]
[SourceQuality "1"]
[TimeControl "5400+30"]

1. e4 {[%emt 0:00:16]} d5 {[%emt 0:00:39]} 2. exd5 {[%emt 0:00:31]} Qxd5 {[%emt 0:00:09]} 3. Nc3 {[%emt 0:00:26]} Qa5 {[%emt 0:00:11]} 4. d4 {[%emt 0:00:34]} e6 {[%emt 0:02:13]} 5. Nf3 {[%emt 0:01:20]} Nf6 {[%emt 0:00:18]} 6. Bd2 {[%emt 0:01:27]} c6 {[%emt 0:00:15]} 7. Bd3 {[%emt 0:00:47]} Bb4 {[%emt 0:03:34]} 8. a3 {[%emt 0:01:07]} Bxc3 {[%emt 0:00:10]} 9. Bxc3 {[%emt 0:00:10]} Qc7 {[%emt 0:02:29]} 10. Ne5 {[%emt 0:01:52]} h5 {[%emt 0:02:26]} 11. f4 {[%emt 0:03:16]} Nbd7 {[%emt 0:03:50]} 12. Qf3 {[%emt 0:02:07]} Nb6 {[%emt 0:00:57]} 13. Ba5 {[%emt 0:03:00]} Qd6 {[%emt 0:03:46]} 14. O-O-O {[%emt 0:01:07]} Qxd4 {[%emt 0:05:11]} 15. Bg6 {[%emt 0:00:44]} Qa4 {[%emt 1:11:52]} 1-0

[Event "17th Memorial Lezcano Montalvo 2025"]
[Site "Gran Canaria"]
[Date "2025.04.14"]
[Round "3.31"]
[White "Hu, Jiani"]
[Black "Rossello Padron, Carlos"]
[Result "1-0"]
[Annotator "NA RC"]
[ECO "B03"]
[WhiteElo "2091"]
[BlackElo "1776"]
[PlyCount "40"]
[EventDate "2025.04.13"]
[EventType "swiss"]
[EventCountry "ESP"]
[SourceTitle "playchess.com"]
[Source "ChessBase"]
[SourceQuality "1"]
[TimeControl "5400+30"]

1. e4 {[%emt 0:00:03]} Nf6 {[%emt 0:00:09]} 2. e5 {[%emt 0:00:44]} Nd5 {[%emt 0:00:33]} 3. c4 {[%emt 0:00:27]} Nb6 {[%emt 0:00:11]} 4. d4 {[%emt 0:00:16]} d6 {[%emt 0:00:21]} 5. f4 {[%emt 0:05:08]} dxe5 {[%emt 0:02:16]} 6. fxe5 {[%emt 0:00:09]} Bf5 {[%emt 0:01:47]} 7. Nf3 {[%emt 0:07:06]} e6 {[%emt 0:02:20]} 8. Nc3 {[%emt 0:04:02]} Bb4 {[%emt 0:02:57]} 9. Be2 {[%emt 0:03:11]} c5 {[%emt 0:02:14]} 10. Bg5 {[%emt 0:11:58]} Qd7 {[%emt 0:01:20]} 11. Qb3 {[%emt 0:02:11]} Nc6 {[%emt 0:02:35]} 12. dxc5 {[%emt 0:01:53]} Bxc5 {[%emt 0:01:45]} 13. Rd1 {[%emt 0:01:01]} Na5 {[%emt 0:10:09]} 14. Rxd7 {[%emt 0:03:51]} Nxb3 {[%emt 0:00:09]} 15. Rc7 {[%emt 0:00:35]} Na1 {[%emt 0:13:47]} 16. Rxc5 {[%emt 0:03:58]} Nc2+ {[%emt 0:01:05]} 17. Kf2 {[%emt 0:00:44]} h6 {[%emt 0:00:15]} 18. Be3 {[%emt 0:01:11]} Rd8 {[%emt 0:02:13]} 19. Rc7 {[%emt 0:02:34]} Nxe3 {[%emt 0:02:40]} 20. Kxe3 {[%emt 0:22:19]} Ra8 1-0

[Event "17th Memorial Lezcano Montalvo 2025"]
[Site "Gran Canaria"]
[Date "2025.04.14"]
[Round "3.32"]
[White "Cappelle, Cedric"]
[Black "Cruz Ramirez, Nauzet"]
[Result "0-1"]
[Annotator "NA RC"]
[ECO "E20"]
[WhiteElo "1774"]
[BlackElo "2076"]
[PlyCount "92"]
[EventDate "2025.04.13"]
[EventType "swiss"]
[EventCountry "ESP"]
[SourceTitle "playchess.com"]
[Source "ChessBase"]
[SourceQuality "1"]
[TimeControl "5400+30"]

1. d4 {[%emt 0:03:02]} Nf6 {[%emt 0:00:33]} 2. c4 {[%emt 0:00:07]} e6 {[%emt 0:00:40]} 3. g3 {[%emt 0:00:08]} d5 {[%emt 0:02:23]} 4. Bg2 {[%emt 0:00:08]} Bb4+ {[%emt 0:00:16]} 5. Nc3 {[%emt 0:00:07]} O-O {[%emt 0:00:44]} 6. Nf3 {[%emt 0:00:08]} Ne4 {[%emt 0:09:01]} 7. Qc2 {[%emt 0:01:25]} f5 {[%emt 0:00:21]} 8. O-O {[%emt 0:01:33]} c6 {[%emt 0:01:21]} 9. Ne5 {[%emt 0:15:38]} Nd7 {[%emt 0:03:05]} 10. Nxe4 {[%emt 0:04:38]} dxe4 {[%emt 0:04:50]} 11. h4 {[%emt 0:07:54]} Bd6 {[%emt 0:07:40]} 12. Bf4 {[%emt 0:01:35]} Qc7 {[%emt 0:00:23]} 13. Qc3 {[%emt 0:01:29]} c5 {[%emt 0:21:48]} 14. Nxd7 {[%emt 0:07:18]} Bxd7 {[%emt 0:00:14]} 15. Bxd6 {[%emt 0:00:36]} Qxd6 {[%emt 0:00:07]} 16. Rfd1 {[%emt 0:01:03]} Rad8 {[%emt 0:05:59]} 17. Rd2 {[%emt 0:02:32]} Bc6 {[%emt 0:06:50]} 18. Rad1 {[%emt 0:00:26]} cxd4 {[%emt 0:03:22]} 19. Rxd4 {[%emt 0:14:57]} Qc7 {[%emt 0:00:13]} 20. b4 {[%emt 0:03:13]} a6 {[%emt 0:01:58]} 21. Qd2 {[%emt 0:10:03]} Rxd4 {[%emt 0:02:34]} 22. Qxd4 {[%emt 0:00:07]} f4 {[%emt 0:06:20]} 23. Qd6 {[%emt 0:05:50]} Qxd6 {[%emt 0:04:32]} 24. Rxd6 {[%emt 0:00:09]} Rf6 {[%emt 0:00:39]} 25. gxf4 {[%emt 0:10:17]} Rxf4 {[%emt 0:00:56]} 26. h5 {[%emt 0:00:41]} Kf7 {[%emt 0:00:58]} 27. h6 {[%emt 0:06:07]} g5 {[%emt 0:01:24]} 28. f3 {[%emt 0:00:44]} Ke7 {[%emt 0:04:02]} 29. Rd4 {[%emt 0:00:37]} e5 {[%emt 0:00:35]} 30. Rd2 {[%emt 0:01:02]} exf3 {[%emt 0:01:05]} 31. Bxf3 {[%emt 0:00:10]} e4 {[%emt 0:00:34]} 32. Bg2 {[%emt 0:01:05]} e3 {[%emt 0:00:35]} 33. Rd3 {[%emt 0:01:32]} Rg4 {[%emt 0:00:07]} 34. Rxe3+ {[%emt 0:00:23]} Kf7 {[%emt 0:00:16]} 35. b5 {[%emt 0:00:27]} axb5 {[%emt 0:00:19]} 36. cxb5 {[%emt 0:00:06]} Bxg2 {[%emt 0:00:07]} 37. a4 {[%emt 0:00:39]} Bd5+ {[%emt 0:01:26]} 38. Kf2 {[%emt 0:00:08]} Re4 {[%emt 0:03:29]} 39. Rd3 {[%emt 0:00:30]} Ke6 {[%emt 0:00:46]} 40. Rg3 {[%emt 0:00:28]} Rf4+ {[%emt 0:00:48]} 41. Ke1 {[%emt 0:00:12]} g4 {[%emt 0:00:14]} 42. Rc3 {[%emt 0:01:30]} Rxa4 {[%emt 0:00:20]} 43. Rc7 {[%emt 0:00:07]} g3 {[%emt 0:00:57]} 44. Rxh7 {[%emt 0:00:09]} g2 {[%emt 0:00:06]} 45. Rg7 {[%emt 0:00:12]} Ra1+ {[%emt 0:00:11]} 46. Kf2 {[%emt 0:01:47]} Rf1+ {[%emt 0:00:05]} 0-1

[Event "17th Memorial Lezcano Montalvo 2025"]
[Site "Gran Canaria"]
[Date "2025.04.14"]
[Round "3.33"]
[White "Sukhodolskyi, Oleksii"]
[Black "Guerra Aleman, Marcial"]
[Result "1-0"]
[Annotator "NA RC"]
[ECO "D02"]
[WhiteElo "2070"]
[BlackElo "1766"]
[PlyCount "47"]
[EventDate "2025.04.13"]
[EventType "swiss"]
[EventCountry "ESP"]
[SourceTitle "playchess.com"]
[Source "ChessBase"]
[SourceQuality "1"]
[TimeControl "5400+30"]

1. d4 {[%emt 0:00:03]} d5 {[%emt 0:01:07]} 2. Bf4 {[%emt 0:00:12]} c5 {[%emt 0:01:01]} 3. e3 {[%emt 0:00:13]} Nc6 {[%emt 0:00:08]} 4. Nf3 {[%emt 0:00:06]} Nf6 {[%emt 0:03:22]} 5. Nbd2 {[%emt 0:00:09]} Bf5 {[%emt 0:03:53]} 6. dxc5 {[%emt 0:01:30]} e6 {[%emt 0:00:38]} 7. Nd4 {[%emt 0:00:46]} Bxc5 {[%emt 0:13:56]} 8. Nxf5 {[%emt 0:00:26]} exf5 {[%emt 0:00:07]} 9. Nb3 {[%emt 0:02:52]} Bb6 {[%emt 0:00:52]} 10. Bd3 {[%emt 0:05:09]} g6 {[%emt 0:09:09]} 11. c3 {[%emt 0:01:48]} O-O {[%emt 0:01:04]} 12. O-O {[%emt 0:00:36]} Nh5 {[%emt 1:01:13]} 13. Bh6 {[%emt 0:00:56]} Re8 {[%emt 0:00:00]} 14. Bxf5 Qf6 {[%emt 0:00:00]} 15. Bg4 Re5 {[%emt 0:01:30]} 16. Bxh5 {[%emt 0:09:02]} g5 {[%emt 0:00:00]} 17. Bxg5 {[%emt 0:02:21]} Rxg5 {[%emt 0:00:00]} 18. Nd4 {[%emt 0:03:07]} Qh6 {[%emt 0:00:00]} 19. Be2 {[%emt 0:01:03]} Qh3 {[%emt 0:00:00]} 20. Bf3 {[%emt 0:11:49]} Nxd4 {[%emt 0:00:00]} 21. exd4 {[%emt 0:02:02]} Bc7 {[%emt 0:00:00]} 22. g3 {[%emt 0:00:09]} Re8 {[%emt 0:00:00]} 23. Bg2 {[%emt 0:00:17]} Qd7 {[%emt 0:00:04]} 24. Re1 {[%emt 0:00:51]} 1-0

[Event "17th Memorial Lezcano Montalvo 2025"]
[Site "Gran Canaria"]
[Date "2025.04.14"]
[Round "3.34"]
[White "Julien Casteleiro, Ariel"]
[Black "Sosa Suarez, Carla Cristina"]
[Result "0-1"]
[Annotator "NA RC"]
[ECO "B07"]
[WhiteElo "1761"]
[BlackElo "2056"]
[PlyCount "58"]
[EventDate "2025.04.13"]
[EventType "swiss"]
[EventCountry "ESP"]
[SourceTitle "playchess.com"]
[Source "ChessBase"]
[SourceQuality "1"]
[TimeControl "5400+30"]

1. d4 {[%emt 0:05:51]} d6 {[%emt 0:00:04]} 2. e4 {[%emt 0:00:29]} Nf6 {[%emt 0:00:03]} 3. Nc3 {[%emt 0:00:24]} e5 {[%emt 0:00:09]} 4. dxe5 {[%emt 0:00:10]} dxe5 {[%emt 0:00:04]} 5. Qxd8+ {[%emt 0:00:25]} Kxd8 {[%emt 0:00:01]} 6. Bg5 {[%emt 0:00:35]} Be6 {[%emt 0:04:31]} 7. Nf3 {[%emt 0:01:54]} Nbd7 {[%emt 0:03:32]} 8. O-O-O {[%emt 0:00:50]} Kc8 {[%emt 0:03:04]} 9. a3 {[%emt 0:05:07]} c6 {[%emt 0:03:19]} 10. h3 {[%emt 0:01:00]} h6 {[%emt 0:04:38]} 11. Bh4 {[%emt 0:00:29]} Kc7 {[%emt 0:03:07]} 12. g4 {[%emt 0:03:19]} g5 {[%emt 0:05:14]} 13. Bg3 {[%emt 0:00:25]} Bd6 {[%emt 0:01:03]} 14. Be2 {[%emt 0:02:45]} Ne8 {[%emt 0:18:46]} 15. Nd2 {[%emt 0:01:21]} b5 {[%emt 0:03:06]} 16. h4 {[%emt 0:06:24]} Rg8 {[%emt 0:05:07]} 17. hxg5 {[%emt 0:03:05]} hxg5 {[%emt 0:00:02]} 18. Rh5 {[%emt 0:00:55]} Nef6 {[%emt 0:03:11]} 19. Rh6 {[%emt 0:04:36]} a5 {[%emt 0:06:37]} 20. f3 {[%emt 0:00:49]} b4 {[%emt 0:01:54]} 21. Na4 {[%emt 0:02:12]} bxa3 {[%emt 0:01:32]} 22. bxa3 {[%emt 0:00:41]} Bxa3+ {[%emt 0:01:39]} 23. Kb1 {[%emt 0:00:08]} Rab8+ {[%emt 0:01:09]} 24. Ka1 {[%emt 0:00:49]} Rb4 {[%emt 0:02:45]} 25. Nc5 {[%emt 0:05:49]} Bb2+ {[%emt 0:01:11]} 26. Kb1 {[%emt 0:00:47]} Nxc5 {[%emt 0:01:33]} 27. Rxf6 {[%emt 0:01:48]} Bc3+ {[%emt 0:02:34]} 28. Kc1 {[%emt 0:02:24]} Rgb8 {[%emt 0:01:47]} 29. Bf2 {[%emt 0:02:00]} Bb2+ {[%emt 0:00:50]} 0-1

[Event "17th Memorial Lezcano Montalvo 2025"]
[Site "Gran Canaria"]
[Date "2025.04.14"]
[Round "3.35"]
[White "Camino Carrio, Nicanor"]
[Black "Creo Abeijon, Diego"]
[Result "1-0"]
[Annotator "NA RC"]
[ECO "B01"]
[WhiteElo "2045"]
[BlackElo "1729"]
[PlyCount "63"]
[EventDate "2025.04.13"]
[EventType "swiss"]
[EventCountry "ESP"]
[SourceTitle "playchess.com"]
[Source "ChessBase"]
[SourceQuality "1"]
[TimeControl "5400+30"]

1. e4 {[%emt 0:00:30]} d5 {[%emt 0:01:13]} 2. exd5 {[%emt 0:00:00]} Nf6 {[%emt 0:00:15]} 3. d4 {[%emt 0:00:37]} Bg4 {[%emt 0:00:16]} 4. Be2 {[%emt 0:00:13]} Bxe2 {[%emt 0:00:12]} 5. Qxe2 {[%emt 0:00:08]} Qxd5 {[%emt 0:00:52]} 6. Nf3 {[%emt 1:32:02]} Nc6 7. c4 Qf5 8. O-O {[%emt 0:00:00]} O-O-O {[%emt 0:03:32]} 9. Be3 {[%emt 0:00:00]} e5 {[%emt 0:15:12]} 10. d5 {[%emt 0:00:00]} Nb4 {[%emt 0:01:53]} 11. Nc3 {[%emt 0:00:00]} a6 {[%emt 0:14:07]} 12. a3 {[%emt 0:00:00]} Nd3 {[%emt 0:03:07]} 13. Rfd1 {[%emt 0:00:00]} Nf4 {[%emt 0:05:22]} 14. Bxf4 {[%emt 0:04:00]} exf4 {[%emt 0:01:55]} 15. b4 {[%emt 0:00:00]} g5 {[%emt 0:05:07]} 16. Nd4 {[%emt 0:00:00]} Qg6 {[%emt 0:01:15]} 17. b5 {[%emt 0:00:00]} axb5 {[%emt 0:15:03]} 18. Ncxb5 {[%emt 0:00:00]} Bc5 {[%emt 0:03:36]} 19. Qb2 {[%emt 0:00:00]} g4 {[%emt 0:04:42]} 20. Rab1 {[%emt 0:00:00]} b6 {[%emt 0:04:51]} 21. Nb3 {[%emt 0:00:00]} Ne4 {[%emt 0:00:58]} 22. Nxc5 {[%emt 0:00:00]} Nxc5 {[%emt 0:00:16]} 23. d6 {[%emt 0:00:00]} g3 {[%emt 0:06:01]} 24. hxg3 {[%emt 0:00:00]} fxg3 {[%emt 0:00:50]} 25. dxc7 {[%emt 0:00:00]} Rxd1+ {[%emt 0:03:17]} 26. Rxd1 {[%emt 0:00:00]} gxf2+ {[%emt 0:00:45]} 27. Qxf2 {[%emt 0:00:00]} Qg4 {[%emt 0:08:00]} 28. Rd4 {[%emt 0:00:00]} Qe6 {[%emt 0:01:02]} 29. Qd2 {[%emt 0:00:00]} Qe7 {[%emt 0:00:34]} 30. Qf4 {[%emt 0:00:00]} Ne6 {[%emt 0:01:17]} 31. Qe4 {[%emt 0:00:00]} Nxd4 {[%emt 0:00:00]} 32. Qxe7 {[%emt 0:00:00]} 1-0

[Event "17th Memorial Lezcano Montalvo 2025"]
[Site "Gran Canaria"]
[Date "2025.04.14"]
[Round "3.36"]
[White "Matos Espino, Carlos Silverio"]
[Black "Fernandez Lozano, Francesc"]
[Result "0-1"]
[Annotator "NA RC"]
[ECO "B77"]
[WhiteElo "1731"]
[BlackElo "2042"]
[PlyCount "36"]
[EventDate "2025.04.13"]
[EventType "swiss"]
[EventCountry "ESP"]
[SourceTitle "playchess.com"]
[Source "ChessBase"]
[SourceQuality "1"]
[TimeControl "5400+30"]

1. e4 {[%emt 0:00:04]} c5 {[%emt 0:00:05]} 2. Nf3 {[%emt 0:00:13]} g6 {[%emt 0:00:05]} 3. d4 {[%emt 0:00:11]} cxd4 {[%emt 0:00:07]} 4. Nxd4 {[%emt 0:00:03]} Bg7 {[%emt 0:00:05]} 5. Bc4 {[%emt 0:01:26]} d6 {[%emt 0:07:50]} 6. Nc3 {[%emt 0:03:06]} Nc6 {[%emt 0:00:14]} 7. Be3 {[%emt 0:00:18]} Nf6 {[%emt 0:00:05]} 8. f3 {[%emt 0:00:07]} O-O {[%emt 0:00:09]} 9. Qd2 {[%emt 0:00:15]} Nxd4 {[%emt 0:02:03]} 10. Bxd4 {[%emt 0:00:20]} Qa5 {[%emt 0:00:01]} 11. O-O-O {[%emt 0:01:51]} Be6 {[%emt 0:09:02]} 12. Bb3 {[%emt 0:01:59]} b5 {[%emt 0:00:18]} 13. Kb1 {[%emt 0:01:10]} b4 {[%emt 0:00:58]} 14. Na4 {[%emt 0:06:54]} Bd7 {[%emt 0:04:59]} 15. Nc5 {[%emt 0:02:33]} dxc5 {[%emt 0:10:08]} 16. Bxf6 {[%emt 0:00:06]} Bxf6 {[%emt 0:00:08]} 17. Qxd7 {[%emt 0:00:06]} c4 {[%emt 0:03:25]} 18. Bxc4 {[%emt 0:01:25]} Qe5 {[%emt 0:00:10]} 0-1

[Event "17th Memorial Lezcano Montalvo 2025"]
[Site "Gran Canaria"]
[Date "2025.04.14"]
[Round "3.37"]
[White "Vega Garcia, Jesus Manuel"]
[Black "Rodriguez Melian, Jose Luis"]
[Result "0-1"]
[Annotator "NA RC"]
[ECO "D77"]
[WhiteElo "1725"]
[BlackElo "2029"]
[PlyCount "32"]
[EventDate "2025.04.13"]
[EventType "swiss"]
[EventCountry "ESP"]
[SourceTitle "playchess.com"]
[Source "ChessBase"]
[SourceQuality "1"]
[TimeControl "5400+30"]

1. d4 {[%emt 0:00:18]} Nf6 {[%emt 0:00:05]} 2. Nf3 {[%emt 0:00:16]} g6 {[%emt 0:00:04]} 3. g3 {[%emt 0:00:14]} d5 {[%emt 0:00:06]} 4. Bg2 {[%emt 0:00:15]} Bg7 {[%emt 0:00:05]} 5. O-O {[%emt 0:00:18]} O-O {[%emt 0:00:04]} 6. c4 {[%emt 0:00:11]} dxc4 {[%emt 0:01:04]} 7. Na3 {[%emt 0:00:08]} c3 {[%emt 0:00:23]} 8. bxc3 {[%emt 0:00:39]} c5 {[%emt 0:00:05]} 9. Re1 {[%emt 0:09:30]} Nc6 {[%emt 0:07:01]} 10. Nc4 {[%emt 0:05:55]} Bf5 {[%emt 0:03:06]} 11. Ba3 {[%emt 0:11:16]} Ne4 {[%emt 0:06:17]} 12. Bb2 {[%emt 0:14:14]} Na5 {[%emt 0:30:22]} 13. Nfe5 {[%emt 0:11:21]} Nd6 {[%emt 0:48:18]} 14. Nxa5 {[%emt 0:14:17]} Qxa5 {[%emt 0:00:00]} 15. Bd5 {[%emt 0:02:58]} cxd4 {[%emt 0:00:00]} 16. cxd4 {[%emt 0:02:21]} Qxd5 {[%emt 0:00:00]} 0-1

[Event "17th Memorial Lezcano Montalvo 2025"]
[Site "Gran Canaria"]
[Date "2025.04.14"]
[Round "3.38"]
[White "Martinez Correa, Rafael"]
[Black "Torres Rebolledo, Marcos"]
[Result "1/2-1/2"]
[Annotator "NA RC"]
[ECO "B10"]
[WhiteElo "1719"]
[BlackElo "2010"]
[PlyCount "79"]
[EventDate "2025.04.13"]
[EventType "swiss"]
[EventCountry "ESP"]
[SourceTitle "playchess.com"]
[Source "ChessBase"]
[SourceQuality "1"]
[TimeControl "5400+30"]

1. e4 {[%emt 0:00:01]} c6 {[%emt 0:00:09]} 2. Nf3 {[%emt 0:00:10]} d5 {[%emt 0:00:08]} 3. exd5 {[%emt 0:00:07]} cxd5 {[%emt 0:00:08]} 4. Ne5 {[%emt 0:00:06]} a6 {[%emt 0:00:49]} 5. d4 {[%emt 0:00:17]} Nc6 {[%emt 0:00:12]} 6. c3 {[%emt 0:01:11]} Nxe5 {[%emt 0:00:39]} 7. dxe5 {[%emt 0:00:10]} Bf5 {[%emt 0:00:43]} 8. Bd3 {[%emt 0:01:20]} Bxd3 {[%emt 0:00:50]} 9. Qxd3 {[%emt 0:00:09]} e6 {[%emt 0:00:09]} 10. O-O {[%emt 0:00:16]} Qc7 {[%emt 0:01:29]} 11. Re1 {[%emt 0:04:08]} Ne7 {[%emt 0:05:08]} 12. Nd2 {[%emt 0:01:41]} Nf5 {[%emt 0:01:32]} 13. Nf3 {[%emt 0:02:18]} Bc5 {[%emt 0:00:24]} 14. Nd4 {[%emt 0:05:31]} Bxd4 {[%emt 0:16:02]} 15. cxd4 {[%emt 0:00:42]} Qb6 {[%emt 0:00:12]} 16. Be3 {[%emt 0:01:29]} h5 {[%emt 0:04:31]} 17. b3 {[%emt 0:03:45]} Kd7 {[%emt 0:01:35]} 18. Rac1 {[%emt 0:01:59]} Rac8 {[%emt 0:01:49]} 19. Kf1 {[%emt 0:03:06]} Qa5 {[%emt 0:02:57]} 20. Qe2 {[%emt 0:15:24]} g6 {[%emt 0:01:22]} 21. Qb2 {[%emt 0:03:24]} Qb5+ {[%emt 0:04:42]} 22. Qe2 {[%emt 0:01:58]} Qb4 {[%emt 0:00:43]} 23. Qb2 {[%emt 0:01:20]} h4 {[%emt 0:05:25]} 24. h3 {[%emt 0:03:40]} Rhg8 {[%emt 0:04:15]} 25. a3 {[%emt 0:07:10]} Qb5+ {[%emt 0:02:49]} 26. Kg1 {[%emt 0:03:26]} Qd3 {[%emt 0:01:32]} 27. a4 {[%emt 0:07:30]} g5 {[%emt 0:07:11]} 28. Qa3 {[%emt 0:04:13]} a5 {[%emt 0:09:04]} 29. Rxc8 {[%emt 0:09:12]} Rxc8 {[%emt 0:01:28]} 30. Rc1 {[%emt 0:01:16]} Rxc1+ {[%emt 0:01:44]} 31. Qxc1 {[%emt 0:00:46]} Qxb3 {[%emt 0:00:54]} 32. Qc5 {[%emt 0:02:47]} Qb4 {[%emt 0:08:17]} 33. Qa7 {[%emt 0:01:11]} Nxe3 {[%emt 0:04:39]} 34. fxe3 {[%emt 0:00:25]} Ke7 {[%emt 0:00:54]} 35. Qb8 {[%emt 0:00:42]} b6 {[%emt 0:02:05]} 36. Qc7+ {[%emt 0:00:34]} Ke8 {[%emt 0:00:51]} 37. Qc8+ {[%emt 0:00:26]} Ke7 {[%emt 0:00:06]} 38. Qc7+ {[%emt 0:00:07]} Ke8 {[%emt 0:00:23]} 39. Qc8+ {[%emt 0:00:07]} Ke7 {[%emt 0:00:06]} 40. Qc7+ {[%emt 0:00:02]} 1/2-1/2